[Event "32nd Panamerican Youth 2022"]
[Site "Montevideo"]
[Date "2022.06.30"]
[Round "7.8"]
[White "Reyes Perez, Aracelly"]
[Black "Luna Monsalve, Sofia"]
[Result "1-0"]
[ECO "C50"]
[WhiteElo "1238"]
[BlackElo "1320"]
[Annotator "NA RC"]
[PlyCount "87"]
[EventDate "2022.06.26"]
[EventType "swiss"]
[EventCountry "URU"]
[SourceTitle "playchess.com"]
[Source "ChessBase"]
[SourceQuality "1"]
[TimeControl "5400+30"]

1. e4 {[%emt 0:06:39]} e5 {[%emt 0:00:47]} 2. Nf3 {[%emt 0:02:00]} Nc6 {[%emt 0:01:04]} 3. Bc4 Bc5 {[%emt 0:00:25]} 4. d3 {[%emt 0:02:04]} Nf6 {[%emt 0:00:50]} 5. c3 {[%emt 0:01:11]} d6 {[%emt 0:01:35]} 6. O-O {[%emt 0:01:06]} a6 {[%emt 0:01:01]} 7. Nbd2 {[%emt 0:01:34]} Ba7 {[%emt 0:01:10]} 8. Bb3 {[%emt 0:04:30]} Be6 {[%emt 0:01:00]} 9. Re1 {[%emt 0:05:48]} O-O {[%emt 0:06:41]} 10. Nf1 {[%emt 0:02:07]} h6 {[%emt 0:04:57]} 11. Ng3 {[%emt 0:03:35]} Na5 {[%emt 0:06:56]} 12. Bc2 {[%emt 0:05:04]} Nc6 {[%emt 0:01:59]} 13. Rf1 {[%emt 0:15:03]} d5 {[%emt 0:02:39]} 14. exd5 {[%emt 0:11:20]} Nxd5 {[%emt 0:01:14]} 15. a3 {[%emt 0:05:18]} f5 {[%emt 0:06:36]} 16. c4 {[%emt 0:01:11]} Nf6 {[%emt 0:01:25]} 17. b3 {[%emt 0:07:10]} Re8 {[%emt 0:09:12]} 18. Bb2 {[%emt 0:00:16]} f4 {[%emt 0:03:56]} 19. Ne4 {[%emt 0:05:13]} Bg4 {[%emt 0:03:27]} 20. h3 {[%emt 0:02:55]} Bh5 {[%emt 0:01:53]} 21. Ned2 {[%emt 0:03:05]} Nd4 {[%emt 0:02:08]} 22. Bxd4 {[%emt 0:00:29]} Bxd4 {[%emt 0:00:53]} 23. Rb1 {[%emt 0:00:07]} Qd7 {[%emt 0:03:17]} 24. b4 {[%emt 0:01:08]} Bc3 {[%emt 0:00:54]} 25. Nb3 {[%emt 0:03:06]} Rad8 {[%emt 0:02:20]} 26. Kh2 {[%emt 0:06:19]} g5 {[%emt 0:02:48]} 27. Nc5 {[%emt 0:00:47]} Qc8 {[%emt 0:01:25]} 28. Ba4 {[%emt 0:00:56]} c6 {[%emt 0:01:46]} 29. Qc2 {[%emt 0:00:43]} Bd4 {[%emt 0:01:22]} 30. Nxd4 {[%emt 0:00:30]} exd4 {[%emt 0:00:40]} 31. Rbe1 {[%emt 0:00:47]} g4 {[%emt 0:01:00]} 32. Qd2 {[%emt 0:02:17]} Qc7 {[%emt 0:02:09]} 33. Ne6 {[%emt 0:00:24]} Qd6 {[%emt 0:02:40]} 34. Nxd8 {[%emt 0:00:16]} f3+ {[%emt 0:01:03]} 35. g3 {[%emt 0:00:14]} Rxd8 {[%emt 0:00:38]} 36. Bb3 Qd7 {[%emt 0:00:41]} 37. c5+ {[%emt 0:01:32]} Kh7 {[%emt 0:00:14]} 38. Be6 {[%emt 0:00:16]} Qg7 {[%emt 0:00:30]} 39. Bf5+ {[%emt 0:00:15]} Kh8 {[%emt 0:00:13]} 40. h4 {[%emt 0:00:42]} Rd5 {[%emt 0:01:31]} 41. Qf4 {[%emt 0:01:08]} Bg6 {[%emt 0:00:40]} 42. Bxg6 {[%emt 0:00:28]} Qxg6 {[%emt 0:00:09]} 43. Qb8+ {[%emt 0:00:08]} Kg7 {[%emt 0:01:46]} 44. Re7+ {[%emt 0:00:09]} 1-0

[Event "32nd Panamerican Youth 2022"]
[Site "Montevideo"]
[Date "2022.06.30"]
[Round "7.9"]
[White "Tang, Benjamin"]
[Black "Marrujo Pardo, Mauricio Emmanuel"]
[Result "1/2-1/2"]
[ECO "C44"]
[WhiteElo "1707"]
[BlackElo "2049"]
[Annotator "RC"]
[PlyCount "63"]
[EventDate "2022.06.26"]
[EventType "swiss"]
[EventCountry "URU"]
[SourceTitle "playchess.com"]
[Source "ChessBase"]
[SourceQuality "1"]
[TimeControl "5400+30"]

1. e4 {[%emt 0:00:02]} e5 {[%emt 0:04:33]} 2. Nf3 {[%emt 0:00:08]} Nc6 {[%emt 0:00:01]} 3. d4 {[%emt 0:00:07]} exd4 {[%emt 0:00:04]} 4. Nxd4 {[%emt 0:00:06]} Qf6 {[%emt 0:00:03]} 5. Nb5 {[%emt 0:01:25]} Bc5 {[%emt 0:00:10]} 6. Qe2 {[%emt 0:00:27]} Bb6 {[%emt 0:00:16]} 7. N1c3 {[%emt 0:00:55]} Nge7 {[%emt 0:05:21]} 8. Be3 {[%emt 0:00:56]} Ba5 {[%emt 0:00:13]} 9. O-O-O {[%emt 0:01:02]} a6 {[%emt 0:15:35]} 10. Nd5 {[%emt 0:04:44]} Nxd5 {[%emt 0:00:39]} 11. exd5 {[%emt 0:00:08]} axb5 {[%emt 0:00:10]} 12. Bd4+ {[%emt 0:06:38]} Qe7 {[%emt 0:00:12]} 13. dxc6 {[%emt 0:00:07]} Qxe2 {[%emt 0:03:34]} 14. cxd7+ {[%emt 0:03:46]} Bxd7 {[%emt 0:35:19]} 15. Bxe2 {[%emt 0:00:08]} Rg8 {[%emt 0:03:49]} 16. Bc5 {[%emt 0:13:59]} c6 {[%emt 0:03:01]} 17. b4 {[%emt 0:01:51]} Bc7 {[%emt 0:00:15]} 18. Rhe1 {[%emt 0:00:59]} O-O-O {[%emt 0:01:40]} 19. Kb1 {[%emt 0:06:04]} Be6 {[%emt 0:01:13]} 20. Bd3 {[%emt 0:03:26]} h6 {[%emt 0:00:22]} 21. Be4 {[%emt 0:02:20]} Rge8 {[%emt 0:08:06]} 22. Rxd8+ {[%emt 0:05:03]} Rxd8 {[%emt 0:03:10]} 23. g3 {[%emt 0:02:37]} b6 {[%emt 0:00:05]} 24. Be3 {[%emt 0:00:21]} Kb7 {[%emt 0:00:07]} 25. c3 {[%emt 0:05:06]} Be5 {[%emt 0:13:10]} 26. Kb2 {[%emt 0:00:34]} Bc4 {[%emt 0:01:07]} 27. Bc2 {[%emt 0:02:23]} Bf6 {[%emt 0:00:46]} 28. Rd1 {[%emt 0:01:03]} Rxd1 {[%emt 0:00:52]} 29. Bxd1 {[%emt 0:00:04]} Bd5 {[%emt 0:00:32]} 30. Bb3 {[%emt 0:01:36]} Bxb3 {[%emt 0:00:30]} 31. axb3 {[%emt 0:01:02]} Kc7 {[%emt 0:00:06]} 32. Kc2 {[%emt 0:00:13]} 1/2-1/2

[Event "32nd Panamerican Youth 2022"]
[Site "Montevideo"]
[Date "2022.06.30"]
[Round "7.10"]
[White "Mercado Diaz, Fabricio Edwin"]
[Black "Hebbar, Eshaan"]
[Result "0-1"]
[ECO "C54"]
[WhiteElo "1549"]
[BlackElo "1742"]
[Annotator "NA RC"]
[PlyCount "76"]
[EventDate "2022.06.26"]
[EventType "swiss"]
[EventCountry "URU"]
[SourceTitle "playchess.com"]
[Source "ChessBase"]
[SourceQuality "1"]
[TimeControl "5400+30"]

1. e4 {[%emt 0:00:02]} e5 {[%emt 0:00:03]} 2. Bc4 {[%emt 0:00:09]} Nc6 {[%emt 0:00:07]} 3. Nf3 {[%emt 0:00:18]} Bc5 {[%emt 0:00:07]} 4. c3 {[%emt 0:00:17]} Nf6 {[%emt 0:00:07]} 5. d3 {[%emt 0:00:07]} d6 {[%emt 0:00:04]} 6. O-O {[%emt 0:00:07]} h6 {[%emt 0:00:05]} 7. b4 {[%emt 0:01:20]} Bb6 {[%emt 0:00:08]} 8. a4 {[%emt 0:00:09]} a6 {[%emt 0:00:04]} 9. h3 {[%emt 0:00:28]} O-O {[%emt 0:00:07]} 10. Nbd2 {[%emt 0:00:11]} Ne7 {[%emt 0:00:09]} 11. Re1 {[%emt 0:01:30]} c6 {[%emt 0:02:16]} 12. Bb2 {[%emt 0:02:09]} Ng6 {[%emt 0:02:28]} 13. Bb3 {[%emt 0:02:58]} Re8 {[%emt 0:02:51]} 14. Qc2 {[%emt 0:00:25]} Nf4 {[%emt 0:02:59]} 15. Nc4 {[%emt 0:01:02]} Bc7 {[%emt 0:01:10]} 16. d4 {[%emt 0:01:33]} N6h5 {[%emt 0:05:59]} 17. Kh2 {[%emt 0:04:29]} exd4 {[%emt 0:06:35]} 18. cxd4 {[%emt 0:00:13]} d5 {[%emt 0:00:21]} 19. Nce5 {[%emt 0:01:18]} f6 {[%emt 0:00:47]} 20. exd5 {[%emt 0:01:46]} cxd5 {[%emt 0:12:26]} 21. g3 {[%emt 0:04:57]} fxe5 {[%emt 0:05:20]} 22. gxf4 {[%emt 0:00:06]} Nxf4 {[%emt 0:01:33]} 23. dxe5 {[%emt 0:01:37]} Bxh3 {[%emt 0:11:19]} 24. Qd2 {[%emt 0:28:34]} Rf8 {[%emt 0:04:04]} 25. Re4 {[%emt 0:03:40]} g5 {[%emt 0:06:53]} 26. Rg1 {[%emt 0:10:21]} Kh7 {[%emt 0:01:21]} 27. Re3 {[%emt 0:12:28]} Bf5 {[%emt 0:06:46]} 28. Bc2 {[%emt 0:02:54]} Ng6 {[%emt 0:08:16]} 29. Bxf5 {[%emt 0:04:06]} Rxf5 {[%emt 0:00:07]} 30. Qc2 {[%emt 0:00:31]} Qd7 {[%emt 0:01:39]} 31. Rc3 {[%emt 0:05:30]} Bb8 {[%emt 0:02:42]} 32. Rd3 {[%emt 0:06:18]} Qf7 {[%emt 0:01:39]} 33. Qd1 {[%emt 0:04:34]} Nf4 {[%emt 0:00:58]} 34. Nd4 {[%emt 0:00:28]} Nxd3 35. Qxd3 {[%emt 0:00:16]} Bxe5+ {[%emt 0:00:33]} 36. Rg3 {[%emt 0:00:04]} Bxd4 {[%emt 0:00:23]} 37. Bxd4 {[%emt 0:00:11]} Re8 {[%emt 0:00:52]} 38. f4 {[%emt 0:00:26]} Qh5+ {[%emt 0:00:27]} 0-1

[Event "32nd Panamerican Youth 2022"]
[Site "Montevideo"]
[Date "2022.06.30"]
[Round "7.11"]
[White "Fiorito, Francisco"]
[Black "Laura Cabrera, Jhon Magno"]
[Result "1-0"]
[ECO "B20"]
[WhiteElo "2208"]
[BlackElo "1356"]
[Annotator "RC"]
[PlyCount "99"]
[EventDate "2022.06.26"]
[EventType "swiss"]
[EventCountry "URU"]
[SourceTitle "playchess.com"]
[Source "ChessBase"]
[SourceQuality "1"]
[TimeControl "5400+30"]

1. e4 {[%emt 0:00:04]} c5 {[%emt 0:00:18]} 2. d3 {[%emt 0:00:04]} Nc6 {[%emt 0:00:05]} 3. g3 {[%emt 0:00:05]} d5 {[%emt 0:00:40]} 4. Nd2 {[%emt 0:00:05]} Nf6 {[%emt 0:00:11]} 5. Bg2 {[%emt 0:00:28]} e6 {[%emt 0:09:44]} 6. Ngf3 {[%emt 0:00:07]} Be7 {[%emt 0:01:05]} 7. O-O {[%emt 0:00:07]} dxe4 {[%emt 0:03:28]} 8. dxe4 {[%emt 0:00:07]} e5 {[%emt 0:01:29]} 9. c3 {[%emt 0:00:17]} O-O {[%emt 0:00:14]} 10. Qe2 {[%emt 0:00:07]} Qc7 {[%emt 0:00:07]} 11. a4 {[%emt 0:00:13]} h6 {[%emt 0:07:01]} 12. Nc4 {[%emt 0:00:08]} Be6 {[%emt 0:01:30]} 13. Nh4 {[%emt 0:02:57]} Na5 {[%emt 0:16:20]} 14. Nxa5 {[%emt 0:01:58]} Qxa5 {[%emt 0:00:46]} 15. Nf5 {[%emt 0:00:53]} Bxf5 {[%emt 0:00:51]} 16. exf5 {[%emt 0:00:07]} Qc7 {[%emt 0:00:36]} 17. Qc4 a6 {[%emt 0:02:58]} 18. Be3 {[%emt 0:02:34]} Rac8 {[%emt 0:01:19]} 19. Rfe1 {[%emt 0:02:15]} Rfe8 {[%emt 0:08:25]} 20. Rad1 {[%emt 0:07:04]} Red8 {[%emt 0:10:17]} 21. h3 {[%emt 0:02:41]} Ne8 {[%emt 0:05:00]} 22. h4 {[%emt 0:05:37]} h5 {[%emt 0:04:08]} 23. Bd5 {[%emt 0:02:09]} Nd6 {[%emt 0:00:32]} 24. Qe2 {[%emt 0:00:14]} Ne8 {[%emt 0:02:58]} 25. Bf3 {[%emt 0:04:46]} Qa5 {[%emt 0:02:57]} 26. Bxb7 {[%emt 0:00:45]} Rc7 27. Bxa6 Qxa4 {[%emt 0:02:40]} 28. Rxd8 {[%emt 0:00:42]} Bxd8 {[%emt 0:00:14]} 29. Bb5 {[%emt 0:00:06]} Qe4 {[%emt 0:03:48]} 30. Bxe8 {[%emt 0:00:06]} Qxf5 {[%emt 0:00:17]} 31. Bb5 {[%emt 0:00:16]} Qg6 {[%emt 0:00:29]} 32. Bg5 {[%emt 0:00:55]} f6 {[%emt 0:03:39]} 33. Rd1 {[%emt 0:00:57]} Be7 {[%emt 0:01:00]} 34. Bc1 {[%emt 0:00:46]} Qf5 {[%emt 0:06:27]} 35. Bd3 {[%emt 0:00:11]} Qc8 {[%emt 0:00:40]} 36. Qxh5 {[%emt 0:00:13]} c4 {[%emt 0:01:22]} 37. Bg6 {[%emt 0:00:08]} Bc5 {[%emt 0:02:07]} 38. Qh7+ {[%emt 0:00:06]} Kf8 {[%emt 0:00:05]} 39. Qh8+ {[%emt 0:00:05]} Ke7 {[%emt 0:00:04]} 40. Qxg7+ {[%emt 0:00:48]} Ke6 {[%emt 0:00:10]} 41. Qh6 {[%emt 0:00:22]} Qf8 {[%emt 0:00:27]} 42. Qh5 {[%emt 0:00:18]} f5 {[%emt 0:00:49]} 43. Bh6 {[%emt 0:00:09]} Qf6 {[%emt 0:00:13]} 44. Bg5 {[%emt 0:00:09]} Qf8 {[%emt 0:00:27]} 45. Rd8 {[%emt 0:00:10]} Qg7 {[%emt 0:00:18]} 46. Bxf5+ {[%emt 0:00:07]} Kxf5 {[%emt 0:00:40]} 47. Qf3+ {[%emt 0:00:16]} Ke6 {[%emt 0:04:11]} 48. Qg4+ {[%emt 0:00:06]} Kf7 {[%emt 0:00:35]} 49. Qf5+ {[%emt 0:00:05]} Qf6 {[%emt 0:00:38]} 50. Qxf6# {[%emt 0:00:02]} 1-0

[Event "32nd Panamerican Youth 2022"]
[Site "Montevideo"]
[Date "2022.06.30"]
[Round "7.12"]
[White "Janampa Javier, Jhonatan David"]
[Black "Garzon Camelo, Andres Santiago"]
[Result "0-1"]
[ECO "B76"]
[WhiteElo "1413"]
[BlackElo "1741"]
[Annotator "NA RC"]
[PlyCount "120"]
[EventDate "2022.06.26"]
[EventType "swiss"]
[EventCountry "URU"]
[SourceTitle "playchess.com"]
[Source "ChessBase"]
[SourceQuality "1"]
[TimeControl "5400+30"]

1. e4 {[%emt 0:00:04]} c5 {[%emt 0:00:10]} 2. Nf3 {[%emt 0:01:15]} d6 {[%emt 0:00:21]} 3. d4 {[%emt 0:01:21]} cxd4 {[%emt 0:00:35]} 4. Nxd4 {[%emt 0:00:53]} Nf6 {[%emt 0:00:06]} 5. Nc3 {[%emt 0:00:55]} g6 {[%emt 0:02:42]} 6. Be3 {[%emt 0:01:26]} Bg7 {[%emt 0:00:18]} 7. f3 {[%emt 0:00:12]} O-O {[%emt 0:00:11]} 8. Qd2 {[%emt 0:00:37]} Nc6 {[%emt 0:00:24]} 9. O-O-O {[%emt 0:00:54]} d5 {[%emt 0:00:22]} 10. exd5 {[%emt 0:00:24]} Nxd5 {[%emt 0:00:18]} 11. Nxc6 bxc6 {[%emt 0:00:09]} 12. Bd4 {[%emt 0:00:27]} e5 {[%emt 0:00:09]} 13. Bc5 {[%emt 0:00:07]} Be6 {[%emt 0:00:17]} 14. Ne4 Re8 {[%emt 0:00:10]} 15. h4 {[%emt 0:01:01]} Nf4 {[%emt 0:00:34]} 16. Qxd8 {[%emt 0:03:27]} Rexd8 {[%emt 0:00:18]} 17. Rxd8+ {[%emt 0:00:32]} Rxd8 {[%emt 0:00:13]} 18. g3 {[%emt 0:02:43]} Nh5 {[%emt 0:00:40]} 19. Ba6 {[%emt 0:09:25]} Bh6+ {[%emt 0:00:32]} 20. Kb1 {[%emt 0:02:39]} f5 {[%emt 0:00:16]} 21. Be7 {[%emt 0:02:04]} Rd5 {[%emt 0:00:17]} 22. Bc4 fxe4 {[%emt 0:00:24]} 23. fxe4 {[%emt 0:08:21]} Nxg3 {[%emt 0:00:21]} 24. exd5 {[%emt 0:03:13]} cxd5 {[%emt 0:00:19]} 25. Re1 {[%emt 0:05:29]} dxc4 {[%emt 0:00:19]} 26. Rxe5 {[%emt 0:00:16]} Kf7 {[%emt 0:00:41]} 27. Bg5 {[%emt 0:01:25]} Bg7 {[%emt 0:00:24]} 28. Rc5 {[%emt 0:01:16]} Bd4 {[%emt 0:01:25]} 29. Rc7+ {[%emt 0:01:19]} Kg8 {[%emt 0:00:15]} 30. c3 {[%emt 0:01:09]} Bb6 {[%emt 0:00:33]} 31. Re7 {[%emt 0:03:36]} Bf7 {[%emt 0:00:59]} 32. Rd7 {[%emt 0:03:14]} Nf5 {[%emt 0:00:14]} 33. Bf6 {[%emt 0:01:11]} Kf8 {[%emt 0:01:24]} 34. a4 {[%emt 0:02:21]} h5 {[%emt 0:00:21]} 35. a5 {[%emt 0:03:03]} Bxa5 {[%emt 0:00:26]} 36. Rxa7 {[%emt 0:02:09]} Bb6 {[%emt 0:01:01]} 37. Ra8+ {[%emt 0:00:21]} Be8 {[%emt 0:00:51]} 38. Rc8 Kf7 39. Bg5 {[%emt 0:02:12]} Nd6 {[%emt 0:01:34]} 40. Rb8 {[%emt 0:01:41]} Bf2 {[%emt 0:01:31]} 41. Bf4 {[%emt 0:02:58]} Nf5 {[%emt 0:00:39]} 42. Rb4 {[%emt 0:00:42]} Bxh4 {[%emt 0:00:32]} 43. Rxc4 {[%emt 0:00:19]} g5 {[%emt 0:00:35]} 44. Bh2 {[%emt 0:01:02]} Bg3 {[%emt 0:00:30]} 45. Bxg3 {[%emt 0:04:28]} Nxg3 {[%emt 0:00:15]} 46. Rc7+ {[%emt 0:00:20]} Ke6 {[%emt 0:00:15]} 47. Rg7 {[%emt 0:01:34]} Kf6 {[%emt 0:00:13]} 48. Rg8 {[%emt 0:01:09]} Bg6+ {[%emt 0:00:14]} 49. Kc1 {[%emt 0:00:50]} h4 {[%emt 0:00:15]} 50. Kd2 {[%emt 0:01:22]} h3 {[%emt 0:00:13]} 51. Rh8 {[%emt 0:00:16]} Bh5 {[%emt 0:00:09]} 52. Rf8+ {[%emt 0:05:08]} Kg7 {[%emt 0:00:26]} 53. Rf2 {[%emt 0:01:29]} Ne4+ {[%emt 0:00:11]} 54. Ke3 {[%emt 0:00:22]} Nxf2 {[%emt 0:01:16]} 55. Kxf2 {[%emt 0:00:01]} Bf7 {[%emt 0:00:15]} 56. Kg3 {[%emt 0:00:52]} g4 {[%emt 0:00:11]} 57. b4 {[%emt 0:00:16]} Bc4 {[%emt 0:00:17]} 58. Kf2 {[%emt 0:01:24]} Kf6 {[%emt 0:00:28]} 59. b5 {[%emt 0:00:09]} Bxb5 {[%emt 0:00:40]} 60. c4 {[%emt 0:00:05]} Bxc4 {[%emt 0:00:13]} 0-1

[Event "32nd Panamerican Youth 2022"]
[Site "Montevideo"]
[Date "2022.06.30"]
[Round "7.13"]
[White "Diaz Bartolo, Elizabeth Schahrazad"]
[Black "Adam, Ernestina"]
[Result "1-0"]
[ECO "A01"]
[WhiteElo "1603"]
[BlackElo "1681"]
[Annotator "NA RC"]
[PlyCount "53"]
[EventDate "2022.06.26"]
[EventType "swiss"]
[EventCountry "URU"]
[SourceTitle "playchess.com"]
[Source "ChessBase"]
[SourceQuality "1"]
[TimeControl "5400+30"]

1. b3 Nf6 2. Bb2 g6 3. g3 Bg7 4. Bg2 O-O 5. e4 d6 6. d4 c6 7. Ne2 Qc7 8. O-O e5 9. c3 {[%emt 0:05:39]} Re8 {[%emt 0:19:29]} 10. Nd2 {[%emt 0:00:30]} Nbd7 {[%emt 0:00:30]} 11. Rc1 {[%emt 0:00:30]} a5 {[%emt 0:00:30]} 12. h3 {[%emt 0:00:30]} d5 {[%emt 0:00:30]} 13. f4 {[%emt 0:00:30]} Nxe4 {[%emt 0:00:30]} 14. Nxe4 {[%emt 0:00:30]} dxe4 {[%emt 0:00:30]} 15. fxe5 {[%emt 0:00:30]} f6 {[%emt 0:00:30]} 16. exf6 {[%emt 0:00:30]} Nxf6 {[%emt 0:00:30]} 17. Nf4 {[%emt 0:00:30]} Bd7 {[%emt 0:45:33]} 18. c4 g5 {[%emt 0:04:20]} 19. Nh5 {[%emt 0:27:33]} Nxh5 {[%emt 0:06:08]} 20. Qxh5 {[%emt 0:00:09]} h6 21. Qg6 {[%emt 0:15:27]} Re6 {[%emt 0:08:20]} 22. Qf7+ {[%emt 0:00:34]} Kh7 {[%emt 0:02:00]} 23. d5 {[%emt 0:01:26]} Rg6 {[%emt 0:01:54]} 24. d6 Qxd6 {[%emt 0:02:17]} 25. Rcd1 {[%emt 0:04:39]} Rf8 {[%emt 0:08:23]} 26. Rxd6 {[%emt 0:07:28]} Rxf7 {[%emt 0:00:16]} 27. Rxf7 1-0

[Event "32nd Panamerican Youth 2022"]
[Site "Montevideo"]
[Date "2022.06.30"]
[Round "7.14"]
[White "Chen, Rachel Ruoxuan"]
[Black "Mayeregger Gonzalez, Fiorella"]
[Result "1-0"]
[ECO "A30"]
[WhiteElo "1618"]
[BlackElo "1312"]
[Annotator "NA RC"]
[PlyCount "95"]
[EventDate "2022.06.26"]
[EventType "swiss"]
[EventCountry "URU"]
[SourceTitle "playchess.com"]
[Source "ChessBase"]
[SourceQuality "1"]
[TimeControl "5400+30"]

1. c4 c5 2. Nf3 e6 3. d4 cxd4 4. Nxd4 a6 5. e4 Qc7 6. Nc3 Nc6 7. Nxc6 bxc6 8. Bd3 Nf6 9. Qe2 d6 10. O-O Be7 {[%emt 0:09:22]} 11. Bf4 {[%emt 0:16:37]} e5 {[%emt 0:01:23]} 12. Be3 {[%emt 0:01:52]} Bg4 {[%emt 0:03:54]} 13. f3 {[%emt 0:02:44]} Bh5 {[%emt 0:02:26]} 14. Na4 {[%emt 0:06:35]} Rb8 {[%emt 0:03:03]} 15. b3 {[%emt 0:11:55]} O-O {[%emt 0:05:46]} 16. c5 {[%emt 0:03:05]} a5 {[%emt 0:09:24]} 17. cxd6 {[%emt 0:00:39]} Bxd6 {[%emt 0:01:20]} 18. Rac1 {[%emt 0:07:00]} Nd7 {[%emt 0:12:52]} 19. Rc2 {[%emt 0:02:29]} c5 {[%emt 0:07:45]} 20. Rfc1 {[%emt 0:00:41]} Qa7 {[%emt 0:00:18]} 21. Nxc5 {[%emt 0:02:24]} Nxc5 {[%emt 0:01:43]} 22. Bxc5 {[%emt 0:00:08]} Bxc5+ {[%emt 0:00:07]} 23. Rxc5 {[%emt 0:00:04]} Rbc8 {[%emt 0:00:39]} 24. Qf2 {[%emt 0:00:19]} Qb7 {[%emt 0:01:19]} 25. Qc2 {[%emt 0:02:37]} Qb6 {[%emt 0:02:33]} 26. Kf1 {[%emt 0:00:46]} Rce8 {[%emt 0:01:43]} 27. Qc3 {[%emt 0:01:08]} Qb4 {[%emt 0:03:03]} 28. Rxa5 {[%emt 0:01:31]} Qb8 {[%emt 0:02:07]} 29. Rc5 {[%emt 0:02:04]} Bg6 {[%emt 0:03:00]} 30. a4 {[%emt 0:02:56]} Rd8 {[%emt 0:00:43]} 31. a5 {[%emt 0:01:15]} Qd6 {[%emt 0:03:08]} 32. Rd5 {[%emt 0:04:49]} Qb8 {[%emt 0:01:37]} 33. Rxd8 {[%emt 0:00:48]} Qxd8 {[%emt 0:00:34]} 34. a6 {[%emt 0:02:20]} Qd6 {[%emt 0:01:11]} 35. Bc4 {[%emt 0:05:06]} Ra8 {[%emt 0:02:23]} 36. Ra1 {[%emt 0:00:26]} h6 {[%emt 0:02:45]} 37. a7 {[%emt 0:01:21]} Qe7 {[%emt 0:00:56]} 38. Qe3 {[%emt 0:00:41]} Kh7 {[%emt 0:02:48]} 39. Bd5 {[%emt 0:00:16]} Qd8 {[%emt 0:00:03]} 40. Bxa8 {[%emt 0:00:10]} Qxa8 {[%emt 0:00:11]} 41. Qb6 {[%emt 0:00:19]} Bxe4 {[%emt 0:00:42]} 42. fxe4 {[%emt 0:00:07]} Qxe4 {[%emt 0:00:10]} 43. a8=Q {[%emt 0:00:14]} Qd3+ {[%emt 0:00:21]} 44. Kg1 {[%emt 0:00:05]} e4 {[%emt 0:00:46]} 45. Qaa7 {[%emt 0:00:30]} Qc3 {[%emt 0:01:38]} 46. Qe3 {[%emt 0:00:28]} Qf6 {[%emt 0:01:18]} 47. Qxe4+ {[%emt 0:00:07]} g6 {[%emt 0:00:17]} 48. Rf1 {[%emt 0:00:09]} 1-0

[Event "32nd Panamerican Youth 2022"]
[Site "Montevideo"]
[Date "2022.06.30"]
[Round "7.15"]
[White "Da Cunha, Gabriela Goes"]
[Black "Villegas Ampuero, Consuelo"]
[Result "1-0"]
[ECO "A58"]
[WhiteElo "1726"]
[BlackElo "1333"]
[Annotator "NA RC"]
[PlyCount "63"]
[EventDate "2022.06.26"]
[EventType "swiss"]
[EventCountry "URU"]
[SourceTitle "playchess.com"]
[Source "ChessBase"]
[SourceQuality "1"]
[TimeControl "5400+30"]

1. d4 Nf6 2. c4 c5 3. d5 b5 4. cxb5 a6 5. bxa6 d6 6. Nc3 g6 7. e3 {[%emt 0:10:09]} Bxa6 {[%emt 0:01:47]} 8. Bxa6 {[%emt 0:02:41]} Nxa6 {[%emt 0:00:14]} 9. Nge2 {[%emt 0:09:55]} Nb4 {[%emt 0:04:42]} 10. O-O {[%emt 0:02:28]} Bg7 {[%emt 0:03:15]} 11. a3 {[%emt 0:06:29]} c4 {[%emt 0:02:50]} 12. Rb1 {[%emt 0:05:45]} Nd3 {[%emt 0:01:22]} 13. b3 {[%emt 0:04:49]} Nxc1 {[%emt 0:01:14]} 14. Qxc1 {[%emt 0:01:19]} cxb3 {[%emt 0:00:49]} 15. Rxb3 {[%emt 0:01:43]} O-O {[%emt 0:00:38]} 16. Nd4 {[%emt 0:12:08]} Qa5 {[%emt 0:01:04]} 17. Nc6 {[%emt 0:03:52]} Qc7 {[%emt 0:00:59]} 18. Qb1 {[%emt 0:04:05]} e6 {[%emt 0:02:01]} 19. Rb7 {[%emt 0:00:46]} Rab8 {[%emt 0:01:49]} 20. Rxc7 {[%emt 0:08:38]} Rxb1 {[%emt 0:00:07]} 21. Rxb1 {[%emt 0:00:42]} Ne8 {[%emt 0:00:33]} 22. Ne7+ {[%emt 0:00:30]} Kh8 {[%emt 0:00:18]} 23. Rc8 {[%emt 0:00:59]} Bxc3 {[%emt 0:01:10]} 24. Rxc3 {[%emt 0:00:08]} Nf6 {[%emt 0:00:23]} 25. dxe6 {[%emt 0:00:14]} fxe6 {[%emt 0:00:25]} 26. Rc8 {[%emt 0:00:07]} Rxc8 {[%emt 0:00:07]} 27. Nxc8 {[%emt 0:00:06]} Ne4 {[%emt 0:01:21]} 28. Rb8 {[%emt 0:00:37]} Kg7 {[%emt 0:00:30]} 29. f3 {[%emt 0:00:07]} Nc5 {[%emt 0:01:10]} 30. Nxd6 {[%emt 0:00:31]} Kf6 {[%emt 0:05:33]} 31. Ne4+ {[%emt 0:00:07]} Nxe4 {[%emt 0:00:18]} 32. fxe4 1-0